bitfinex-derivatives/quotes_ETHF0:USTF0_20251203
["timestamp","ask_amount","ask_price","bid_price","bid_amount"]
[1764760381880,5.0086,3057.8,3057.7,0.9447]
[1764760382581,5.0086,3057.8,3057.7,1.8248]
[1764760382781,4.1377,3057.8,3057.7,1.8248]
[1764760382980,5.0086,3057.8,3057.7,0.9447]
[1764760383575,3.2078,3057.8,3057.7,1.8834]
[1764760384282,3.2078,3057.8,3057.7,3.05640672]
[1764760384981,3.2078,3058.3,3058.2,1.7742]
[1764760385184,4.0037,3058.3,3058.2,1.7742]
[1764760385584,1.7177,3058.3,3058.2,1.7742]
[1764760385978,0.79892146,3058.4,3058.3,1.7742]
[1764760386279,0.79892146,3058.4,3058.3,2.94797231]
[1764760386476,1.72072146,3058.4,3058.3,2.94797231]
[1764760387179,0.79892146,3058.4,3058.3,2.94797231]
[1764760388078,0.00302146,3058.4,3058.3,2.94797231]
[1764760389077,1.72072146,3058.4,3058.3,2.94797231]
[1764760389277,1.7177,3058.3,3058.2,2.00927231]
[1764760389481,0.79892146,3058.4,3058.3,1.7742]
[1764760389784,1.72072146,3058.4,3058.3,1.7742]
[1764760390987,1.72072146,3058.4,3058.3,2.94797231]
[1764760391188,0.79892146,3058.4,3058.3,2.94797231]
[1764760392190,0.00302146,3058.4,3058.3,2.94797231]
[1764760394987,1.72072146,3058.4,3058.3,1.17377231]
[1764760395394,1.72072146,3058.4,3058.3,2.00927231]
[1764760395785,1.72072146,3058.4,3058.3,2.94797231]
[1764760396398,0.79892146,3058.4,3058.3,2.94797231]
[1764760396694,0.00302146,3058.4,3058.3,2.94797231]
[1764760397091,0.00302146,3058.4,3058.3,1.7742]
[1764760399295,0.00302146,3058.4,3058.3,3.53551561]
[1764760399499,0.00302146,3058.4,3058.3,1.7742]
[1764760401596,3.2078,3059.3,3059.2,1.7742]
[1764760401903,0.7959,3059.3,3059.2,1.7742]
[1764760402499,4.9255,3059.7,3059.6,0.8355]
[1764760402701,4.92926807,3059.7,3059.6,0.8355]
[1764760403399,0.00376807,3059.7,3059.6,2.92441288]
[1764760403705,0.79966807,3059.7,3059.6,2.92441288]
[1764760403908,0.00376807,3059.7,3059.6,2.92441288]
[1764760404505,0.00376807,3059.7,3059.6,1.7742]
[1764760405807,0.79966807,3059.7,3059.6,1.7742]
[1764760406310,1.72146807,3059.7,3059.6,0.8355]
[1764760406903,1.7177,3059.6,3059.5,0.5065]
[1764760407102,1.7177,3059.6,3059.5,1.342]
[1764760407302,1.7177,3059.6,3059.5,2.2807]
[1764760408009,0.7959,3059.6,3059.5,5.4885]
[1764760408908,0.00376807,3059.7,3059.6,1.7742]
[1764760409409,0.79966807,3059.7,3059.6,1.7742]
[1764760411711,1.72146807,3059.7,3059.6,1.7742]
[1764760413310,1.7187,3059.6,3059.5,3.2078]
[1764760413906,0.87206807,3059.7,3059.6,1.6787]
[1764760414106,1.72246807,3059.7,3059.6,1.6787]
[1764760414309,1.72246807,3059.7,3059.6,0.8665]
[1764760414509,0.00376807,3059.7,3059.6,1.6787]
[1764760414904,0.87206807,3059.7,3059.6,1.6787]
[1764760415105,1.72246807,3059.7,3059.6,1.6787]
[1764760415415,1.7187,3059.6,3059.5,4.0743]
[1764760416111,1.7187,3059.6,3059.5,3.2078]
[1764760416308,1.7187,3059.6,3059.5,4.0743]
[1764760416513,1.7187,3059.6,3059.5,5.4545]
[1764760416707,0.8683,3059.6,3059.5,5.4545]
[1764760419519,0.93786807,3059.7,3059.6,1.7429]
[1764760420816,0.00376807,3059.7,3059.6,1.7429]
[1764760422617,0.00376807,3059.7,3059.5,3.7165]
[1764760422618,1.8059,3059.6,3059.5,5.4594]
[1764760423020,0.9341,3059.6,3059.5,5.4594]
[1764760423318,1.8059,3059.6,3059.5,5.4594]
[1764760424119,0.9341,3059.6,3059.5,5.4594]
[1764760424818,0.93786807,3059.7,3059.6,1.7429]
[1764760425818,0.00376807,3059.7,3059.6,1.7429]
[1764760426113,0.93786807,3059.7,3059.6,1.7429]
[1764760428712,0.93786807,3059.7,3059.6,4.9507]
[1764760429114,1.80966807,3059.7,3059.6,4.9507]
[1764760429420,1.80966807,3059.7,3059.6,4.0792]
[1764760429611,1.80966807,3059.7,3059.6,4.38154128]
[1764760430111,1.80966807,3059.7,3059.6,5.25294128]
[1764760430519,1.80966807,3059.7,3059.6,6.12444128]
[1764760431020,1.80966807,3059.7,3059.6,5.25294128]
[1764760432519,1.80966807,3059.7,3059.6,2.04514128]
[1764760432721,1.80966807,3059.7,3059.6,0.8714]
[1764760433423,1.80966807,3059.7,3059.6,2.04514128]
[1764760433816,1.80966807,3059.7,3059.6,1.17374128]
[1764760440228,1.8059,3059.6,3059.5,1.17374128]
[1764760440619,0.9341,3059.6,3059.5,3.42534128]
[1764760440826,1.8059,3059.6,3059.5,3.42534128]
[1764760442227,1.8059,3059.6,3059.5,2.04514128]
[1764760442526,1.8059,3059.6,3059.5,3.42534128]
[1764760446127,1.8059,3059.6,3059.5,2.55384128]
[1764760447627,1.8059,3059.6,3059.5,1.17374128]
[1764760447828,1.7352,3059.3,3059.2,1.17758857]
[1764760448129,1.92651282,3059.3,3059.2,0.00384729]
[1764760449533,42.72651282,3059.3,3059.2,0.00384729]
[1764760449828,1.92651282,3059.3,3059.2,0.00384729]
[1764760450432,42.72651282,3059.3,3059.2,0.00384729]
[1764760451426,42.72651282,3059.3,3058.9,0.00490348]
[1764760451427,2.0305,3059.0,3058.9,0.00490348]
[1764760452226,2.0305,3059.0,3058.9,0.00797257]
[1764760454127,5.2383,3059.0,3058.9,0.00797257]
[1764760455233,5.2383,3059.0,3058.3,4.9173]
[1764760455234,1.7352,3058.4,3058.3,4.9173]
[1764760456133,0.8147,3058.4,3058.3,4.92025165]
[1764760456733,3.5031,3059.0,3058.3,4.92025165]
[1764760456936,0.8147,3058.4,3058.3,4.92025165]
[1764760460138,3.5031,3059.0,3058.3,4.92025165]
[1764760460441,1.7352,3058.4,3058.3,4.92025165]
[1764760460937,1.7352,3058.4,3058.3,0.00295165]
[1764760461238,1.7352,3058.4,3058.3,0.85445165]
[1764760461533,1.7352,3058.4,3058.3,1.71245165]
[1764760463031,3.2078,3058.5,3058.3,1.71245165]
[1764760463233,0.8147,3058.6,3058.5,2.1742]
[1764760463537,1.7352,3058.6,3058.5,2.1742]
[1764760463837,0.8147,3058.6,3058.5,2.1742]
[1764760464639,1.7352,3058.6,3058.5,2.1742]
[1764760465338,1.7352,3058.4,3058.3,1.71245165]
[1764760467041,1.7352,3058.4,3058.3,0.85445165]
[1764760467231,1.7352,3058.4,3058.3,0.00295165]
[1764760467739,1.7352,3058.4,3058.3,0.85445165]
[1764760469234,1.7352,3058.4,3058.3,0.00295165]
[1764760469643,1.7352,3058.4,3058.0,3.2078]
[1764760469833,1.40108004,3058.5,3058.0,3.2078]
[1764760469834,1.7352,3058.1,3058.0,3.2078]
[1764760470539,1.7352,3058.1,3058.0,4.0593]
[1764760470736,1.7352,3058.1,3058.0,5.38565629]
[1764760472142,0.8147,3058.1,3058.0,5.38565629]
[1764760473145,1.7352,3058.1,3058.0,5.38565629]
[1764760473545,0.8147,3058.1,3058.0,5.38565629]
[1764760473845,1.6015,3058.1,3058.0,5.38565629]
[1764760474244,0.8147,3058.1,3058.0,5.38565629]
[1764760477346,1.5871,3058.1,3058.0,5.38565629]
[1764760477548,1.51000348,3058.4,3058.3,1.4895]
[1764760477940,1.51000348,3058.4,3058.3,0.7583]
[1764760479146,0.7327,3058.1,3058.0,5.16565629]
[1764760480851,1.51000348,3058.4,3058.3,0.7583]
[1764760482349,1.51000348,3058.4,3058.3,1.4895]
[1764760483354,1.51000348,3058.4,3058.3,0.7583]
[1764760483556,0.7327,3058.1,3058.0,5.16565629]
[1764760484154,1.5051,3058.1,3058.0,5.16565629]
[1764760484744,1.5051,3058.1,3058.0,4.43445629]
[1764760484950,1.5051,3058.1,3058.0,5.16565629]
[1764760486458,0.7327,3058.1,3058.0,5.16565629]
[1764760487259,1.15007742,3058.3,3058.2,1.4895]
[1764760487260,2.65517742,3058.3,3058.2,1.4895]
[1764760487662,2.65517742,3058.3,3058.2,0.7583]
[1764760487858,1.5051,3058.1,3058.0,3.67615629]
[1764760488070,1.5051,3058.1,3058.0,0.00365629]
[1764760490655,3.2078,3058.2,3058.0,1.95205629]
[1764760490860,4.7129,3058.2,3058.1,1.4895]
[1764760491060,4.90379146,3058.2,3058.1,1.4895]
[1764760491257,0.00490348,3058.4,3058.3,1.4895]
[1764760491964,0.73760348,3058.4,3058.3,1.4895]
[1764760492466,0.00490348,3058.4,3058.3,1.4895]
[1764760492951,1.51000348,3058.4,3058.3,0.7583]
[1764760493157,0.73760348,3058.4,3058.3,1.4895]
[1764760493963,0.00490348,3058.4,3058.3,1.4895]
[1764760494771,0.73760348,3058.4,3058.3,1.4895]
[1764760495664,1.51000348,3058.4,3058.3,1.4895]
[1764760496458,1.51000348,3058.4,3058.3,0.7583]
[1764760497061,1.5051,3058.2,3058.1,1.93204128]
[1764760497259,1.5051,3058.1,3058.0,2.39459757]
[1764760497656,1.5051,3058.1,3058.0,0.00365629]
[1764760499362,4.7129,3058.1,3058.0,0.00365629]
[1764760499664,4.90399003,3058.1,3058.0,0.00365629]
[1764760499965,1.5051,3057.7,3057.6,4.38154128]
[1764760500162,2.65517742,3057.7,3057.6,5.13984128]
[1764760500364,2.65517742,3058.0,3057.9,1.4895]
[1764760500564,1.69615961,3058.0,3057.9,1.4895]
[1764760500762,0.92375961,3058.0,3057.9,1.49183817]
[1764760500958,0.19105961,3058.0,3057.9,1.49183817]
[1764760501179,3.2078,3058.1,3058.0,1.9484]
[1764760503665,0.00490348,3058.4,3058.3,1.4917]
[1764760503869,0.19610653,3058.4,3058.3,1.4917]
[1764760504167,0.00490348,3058.4,3058.3,1.4917]
[1764760507679,1.52130348,3058.4,3058.3,0.7583]
[1764760508172,0.74970348,3058.4,3058.3,1.4917]
[1764760508372,1.52130348,3058.4,3058.3,1.4917]
[1764760508972,0.74970348,3058.4,3058.3,1.4917]
[1764760509174,1.52130348,3058.4,3058.3,1.4917]
[1764760509574,0.74970348,3058.4,3058.3,1.4917]
[1764760509767,0.00490348,3058.4,3058.3,1.4917]
[1764760510471,0.74970348,3058.4,3058.3,1.4917]
[1764760511078,1.52130348,3058.4,3058.3,1.4917]
[1764760511375,0.94119954,3058.4,3058.3,1.4917]
[1764760512376,1.71279954,3058.4,3058.3,1.4917]
[1764760513678,0.94119954,3058.4,3058.3,1.4917]
[1764760514071,1.71279954,3058.4,3058.3,1.4917]
[1764760515265,0.74970348,3058.4,3058.3,1.4917]
[1764760516080,1.52130348,3058.4,3058.3,1.4917]
[1764760518284,0.74970348,3058.4,3058.3,1.4917]
[1764760519885,0.00490348,3058.4,3058.3,1.4917]
[1764760522080,0.00490348,3058.4,3058.3,2.66544128]
[1764760526383,0.74970348,3058.4,3058.3,2.66544128]
[1764760526578,1.52130348,3058.4,3058.3,1.4917]
[1764760526782,1.52130348,3058.4,3058.3,0.7583]
[1764760527383,1.5164,3058.3,3058.2,1.17374128]
[1764760527584,2.66647742,3058.3,3058.2,1.94824128]
[1764760528901,2.66647742,3058.3,3058.2,1.17374128]
[1764760529092,2.66647742,3058.3,3058.2,1.94824128]
[1764760530998,2.66647742,3058.3,3058.2,2.68164128]
[1764760533404,2.66647742,3058.3,3058.1,1.17374128]
[1764760533603,2.66647742,3058.3,3058.2,0.7645]
[1764760534102,2.66647742,3058.3,3058.2,1.5461]
[1764760534602,2.66647742,3058.3,3058.2,0.7645]
[1764760534798,1.5864,3058.2,3058.1,1.93824128]
[1764760535100,1.5864,3058.0,3057.9,0.00233817]
[1764760535301,6.39783864,3058.0,3057.9,0.00233817]
[1764760535998,6.13583864,3058.0,3057.9,0.00233817]
[1764760537301,1.5085,3057.4,3057.3,4.38154128]
[1764760537501,1.5085,3057.4,3057.1,1.5283]
[1764760537502,1.5085,3057.2,3057.1,1.5283]
[1764760538004,0.7453,3057.2,3057.1,1.5283]
[1764760538406,0.74761239,3057.2,3057.1,1.53083988]
[1764760539504,1.51081239,3057.2,3057.1,1.53083988]
[1764760544709,4.71861239,3057.2,3057.1,1.53083988]
[1764760547006,4.71861239,3057.2,3057.1,0.73353988]
[1764760547206,4.71861239,3057.2,3057.1,0.00253988]
[1764760548110,4.71861239,3057.2,3056.5,3.6725]
[1764760549005,4.71861239,3057.2,3056.5,3.67509889]
[1764760550006,1.17714071,3057.0,3056.5,3.67509889]
[1764760550400,0.7453,3056.6,3056.5,5.20339889]
[1764760551707,1.51340348,3056.9,3056.8,0.731]
[1764760553109,0.75020348,3056.9,3056.8,1.5283]
[1764760553314,0.00490348,3056.9,3056.8,1.5283]
[1764760553612,1.51340348,3056.9,3056.8,1.5283]
[1764760554014,0.75020348,3056.9,3056.8,1.5283]
[1764760554513,1.51340348,3056.9,3056.8,1.5283]
[1764760554708,1.51340348,3056.9,3055.8,1.76061193]
[1764760554913,1.51340348,3056.9,3053.7,10.094]
[1764760554914,0.4443,3054.5,3053.7,8.03635785]
[1764760555209,0.4443,3054.5,3041.4,32.303]
[1764760555210,1.17714071,3051.9,3051.8,1.5283]
[1764760555410,1.3689143,3051.9,3051.8,3.81727817]
[1764760555610,4.38674215,3051.9,3051.8,3.81727817]
[1764760555808,4.39029861,3051.9,3051.8,3.82063027]
[1764760556010,3.17561005,3051.9,3051.8,3.82063027]
[1764760556210,1.43234199,3051.9,3051.8,3.82063027]
[1764760556710,1.43234199,3051.9,3051.8,9.82063027]
[1764760556916,1.43234199,3051.9,3051.8,3.82063027]
[1764760557109,1.43234199,3051.9,3051.8,9.82063027]
[1764760558110,4.64014199,3051.9,3051.0,0.4833]
[1764760558313,3.2078,3051.2,3051.1,0.731]
[1764760558516,4.63658553,3051.2,3051.1,0.731]
[1764760558813,4.63658553,3051.2,3051.0,0.4833]
[1764760559014,1.42878553,3051.1,3051.0,0.4833]
[1764760559408,1.42878553,3051.1,3051.0,0.48716268]
[1764760560014,1.42878553,3051.1,3051.0,2.01546268]
[1764760560810,3.2078,3051.2,3051.1,1.5283]
[1764760561214,3.2078,3051.5,3051.0,0.48716268]
[1764760561420,3.2078,3051.5,3051.4,1.5283]
[1764760561810,1.74728156,3051.9,3051.8,1.5283]
[1764760562015,0.00355646,3051.9,3051.8,1.5283]
[1764760565418,3.2078,3052.0,3051.9,6.4896]
[1764760565824,2.32269127,3052.9,3052.8,6.4896]
[1764760566121,2.32269127,3053.0,3052.9,6.4896]
[1764760566315,5.58977036,3053.0,3052.9,6.4896]
[1764760567222,6.38447036,3053.0,3052.6,0.00491175]
[1764760567622,0.00327036,3053.0,3052.6,6.49451175]
[1764760567824,6.38447036,3053.0,3052.9,5.727]
[1764760568025,6.38447036,3053.0,3052.6,0.00491175]
[1764760568320,5.58977036,3053.0,3052.9,5.727]
[1764760568620,5.5865,3052.7,3052.6,5.73191175]
[1764760569922,6.3812,3052.7,3052.6,0.00491175]
[1764760571121,5.5865,3051.6,3051.5,9.4181]
[1764760571321,3.2078,3052.5,3052.2,0.7626]
[1764760571525,9.589,3052.5,3052.0,3.3673]
[1764760571726,50.389,3052.5,3052.0,3.3673]
[1764760571926,44.0078,3052.5,3052.4,6.4896]
[1764760572127,44.0078,3052.5,3052.0,3.3673]
[1764760572620,6.3812,3052.1,3051.5,3.6911]
[1764760572825,8.7943,3052.1,3052.0,9.8569]
[1764760573027,4.33689468,3052.1,3052.0,9.8569]
[1764760573228,1.12909468,3052.1,3052.0,9.8569]
[1764760576428,0.87927243,3052.1,3052.0,9.8569]
[1764760578131,1.12923066,3052.1,3052.0,9.8569]
[1764760578926,0.24995823,3052.1,3052.0,9.8569]
[1764760579832,3.2078,3052.9,3052.5,3.3673]
[1764760580027,5.83652068,3052.8,3052.7,6.4896]
[1764760580228,6.63122068,3052.8,3052.7,6.4896]
[1764760580428,6.3812,3052.6,3052.0,3.3673]
[1764760580626,10.41351563,3052.5,3052.4,6.4896]
[1764760580838,4.03231563,3052.5,3052.4,6.4896]
[1764760581041,0.82451563,3052.5,3052.4,9.6974]
[1764760581842,0.00491175,3053.3,3053.2,6.4896]
[1764760582135,0.00491175,3053.3,3053.2,9.6974]
[1764760582922,3.2078,3053.8,3053.7,6.4896]
[1764760583128,3.21149574,3053.8,3053.7,6.4896]
[1764760584832,0.00369574,3053.8,3053.7,6.4896]
[1764760585029,0.00491175,3054.1,3054.0,9.8569]
[1764760585832,0.00491175,3054.1,3054.0,13.0647]
[1764760586039,0.00823385,3054.1,3054.0,13.0647]
[1764760587240,3.2078,3054.7,3054.6,6.4896]
[1764760587733,3.2078,3055.1,3055.0,9.8569]
[1764760587933,8.7943,3055.1,3055.0,9.8569]
[1764760588132,8.79738078,3055.1,3055.0,9.8569]
[1764760588332,9.59208078,3055.1,3054.5,3.3673]
[1764760588535,9.59208078,3055.1,3055.0,5.727]
[1764760588729,8.79738078,3055.1,3055.0,9.8569]
[1764760588930,3.21088078,3055.1,3055.0,9.8569]
[1764760591735,3.21088078,3055.1,3054.5,3.3673]
[1764760591736,9.59208078,3055.1,3054.5,3.3673]
[1764760592335,3.21088078,3055.1,3055.0,9.8569]
[1764760592837,0.00491175,3055.4,3055.3,6.4896]
[1764760593742,0.00772255,3055.4,3055.3,6.4896]
[1764760594337,5.59422255,3055.4,3055.3,6.4896]
[1764760595043,11.06852255,3055.4,3055.3,6.4896]
[1764760595437,11.06852255,3055.4,3055.3,5.727]
[1764760596241,5.59422255,3055.4,3055.3,11.1848]
[1764760599843,0.00772255,3055.4,3055.3,11.1848]
[1764760601555,10.69552255,3055.4,3055.3,11.1848]
[1764760601847,5.29382255,3055.4,3055.3,11.1848]
[1764760602142,0.00772255,3055.4,3055.3,11.1848]
[1764760606646,2.255e-05,3055.4,3055.3,11.1848]
[1764760610250,0.00491175,3055.7,3055.6,11.4779]
[1764760610251,3.43e-05,3055.7,3055.6,11.4779]
[1764760610442,3.43e-05,3055.7,3055.6,14.6857]
[1764760611249,0.00331623,3055.7,3055.6,14.68891765]
[1764760611449,5.50565993,3056.5,3056.4,11.4779]
[1764760611655,0.21955993,3056.5,3056.4,11.4779]
[1764760611845,1.69738272,3056.7,3056.1,3.2078]
[1764760611846,10.90762821,3056.6,3056.5,14.7197]
[1764760612046,10.90762843,3056.6,3056.5,14.7197]
[1764760612542,10.91019254,3056.6,3056.5,14.7197]
[1764760612853,5.2861,3056.2,3056.1,8.8856]
[1764760613061,10.6878,3056.2,3056.1,14.6857]
[1764760613250,5.2861,3056.2,3056.1,14.6857]
[1764760613447,1.74818719,3057.9,3057.5,14.7197]
[1764760613653,5.2861,3057.9,3057.8,14.6857]
[1764760613952,10.6878,3057.9,3057.8,14.6857]
[1764760614453,10.69136046,3057.9,3057.8,14.68883723]
[1764760614848,5.28966046,3057.9,3057.8,14.68883723]
[1764760615551,10.69136046,3057.9,3057.8,14.68883723]
[1764760616455,3.2078,3060.3,3059.5,3.2418]
[1764760616648,10.6878,3059.4,3059.3,8.8856]
[1764760616849,10.6878,3059.4,3059.3,3.2078]
[1764760616850,10.89404248,3059.4,3059.3,3.2078]
[1764760617453,10.89722386,3059.4,3059.3,3.2078]
[1764760617651,10.89722386,3059.4,3059.3,8.8856]
[1764760619353,10.69098138,3059.4,3059.3,8.8856]
[1764760619553,3.3065,3060.5,3059.3,8.8856]
[1764760619554,1.69738272,3062.2,3061.0,3.2418]
[1764760619858,10.6878,3061.5,3061.4,3.2078]
[1764760620256,40.8,3062.1,3061.5,3.2418]
[1764760620458,0.00321298,3062.1,3061.9,14.6857]
[1764760620660,4.90518272,3063.0,3062.0,14.7197]
[1764760620661,0.20365363,3062.7,3062.0,14.7197]
[1764760620855,4.90518272,3063.3,3062.6,3.2078]
[1764760621060,0.20370979,3063.2,3062.6,3.2078]
[1764760621353,11.133,3063.7,3063.0,3.2078]
[1764760621547,11.13553155,3063.7,3063.0,3.21270364]
[1764760621754,5.2861,3063.1,3063.0,3.21270364]
[1764760622063,10.6878,3062.5,3062.4,3.2078]
[1764760622961,10.6878,3062.5,3061.5,6.4519209]
[1764760622962,10.6878,3062.1,3061.5,6.4519209]
[1764760623155,3.2078,3062.3,3061.5,6.45682454]
[1764760624361,1.69738272,3062.2,3061.5,3.21502454]
[1764760624660,12.3748,3061.6,3061.5,0.00722454]
[1764760626458,53.1748,3061.6,3061.5,0.00490364]
[1764760626661,53.1748,3061.6,3061.0,3.2078]
[1764760626959,6.5414,3061.1,3061.0,3.2078]
[1764760627563,3.2078,3061.4,3061.0,3.2078]
[1764760627763,0.00389766,3061.1,3061.0,9.37211984]
[1764760627951,0.00389766,3061.1,3061.0,14.88361984]
[1764760629158,12.37869766,3061.1,3061.0,3.21031984]
[1764760629361,12.37869766,3061.1,3061.0,0.00251984]
[1764760629756,12.37869766,3061.1,3060.7,6.16670364]
[1764760629757,6.5414,3060.8,3060.7,6.16670364]
[1764760629959,0.0088013,3061.1,3060.7,6.16670364]
[1764760630161,12.3836013,3061.1,3060.7,0.00490364]
[1764760630361,6.5502013,3061.1,3060.7,0.00490364]
[1764760630761,0.0088013,3061.1,3061.0,11.6733]
[1764760631268,6.5502013,3061.1,3061.0,6.1618]
[1764760631562,6.5502013,3061.1,3060.7,0.00844001]
[1764760634465,6.5414,3060.8,3060.7,0.00844001]
[1764760634666,12.3748,3060.8,3060.7,0.00844001]
[1764760639571,25.5778,3060.8,3060.7,0.00844001]
[1764760639975,12.3748,3060.2,3060.1,3.2078]
[1764760640971,13.203,3060.8,3059.7,10.4078]
[1764760640972,12.3748,3059.8,3059.7,10.4078]
[1764760641164,12.3748,3059.8,3059.7,4.24860857]
[1764760641569,12.3748,3059.8,3059.7,10.41040857]
[1764760641774,6.5414,3059.8,3059.7,10.41040857]
[1764760643268,12.3748,3059.8,3059.7,10.41040857]
[1764760643467,12.3748,3059.8,3059.7,4.24860857]
[1764760646478,12.3748,3059.8,3059.7,1.04080857]
[1764760649480,25.5578,3059.8,3059.7,1.04080857]
[1764760650971,12.3748,3059.8,3059.7,1.04080857]
[1764760651168,25.5558,3059.8,3059.7,1.04080857]
[1764760651471,25.75991685,3059.8,3059.7,1.04080857]
[1764760652280,25.76042552,3059.8,3059.7,1.04080857]
[1764760654382,13.8952,3059.5,3059.4,1e-08]
[1764760654580,14.09982552,3059.5,3059.4,1e-08]
[1764760655386,12.7824,3059.4,3058.7,3.2078]
[1764760655585,13.37262552,3059.3,3058.7,3.2078]
[1764760655787,12.7824,3059.1,3059.0,16.0534]
[1764760656378,12.7824,3059.1,3059.0,16.05642158]
[1764760657188,6.1654,3059.1,3059.0,16.05642158]
[1764760657487,12.37260364,3059.4,3059.3,6.3741]
[1764760657687,25.74015381,3059.4,3059.3,12.4998]
[1764760657982,66.54015381,3059.4,3059.3,6.3741]
[1764760658685,12.3677,3059.1,3059.0,16.06502158]
[1764760659189,12.3677,3059.1,3059.0,0.00302158]
[1764760659689,12.3677,3059.1,3059.0,6.37712158]
[1764760660188,15.77999077,3059.1,3059.0,0.00302158]
[1764760660486,28.93699077,3059.1,3059.0,0.00302158]
[1764760661687,15.77999077,3059.1,3059.0,16.07222158]
[1764760662689,9.66069077,3059.1,3059.0,16.07222158]
[1764760663388,3.41229077,3059.1,3059.0,16.07222158]
[1764760663783,15.77999077,3059.1,3059.0,0.00302158]
[1764760664184,28.92999077,3059.1,3059.0,0.00302158]
[1764760664584,28.92999077,3059.1,3059.0,16.07222158]
[1764760664793,22.80969077,3059.1,3059.0,16.07222158]
[1764760665391,28.92899077,3059.1,3059.0,16.07222158]
[1764760665583,22.80969077,3059.1,3059.0,16.07222158]
[1764760665991,28.92899077,3059.1,3059.0,16.07222158]
[1764760668004,22.80969077,3059.1,3059.0,16.07222158]
[1764760669295,28.92899077,3059.1,3059.0,16.07222158]
[1764760670291,16.56129077,3059.1,3059.0,16.07222158]
[1764760670594,0.20449077,3059.1,3059.0,16.07222158]
[1764760670795,6.25330364,3059.4,3059.3,12.4998]
[1764760670991,19.59329124,3059.4,3059.3,12.4998]
[1764760671196,25.71259124,3059.4,3059.3,12.4998]
[1764760671987,12.57759124,3059.4,3059.3,12.4998]
[1764760672188,25.71059124,3059.4,3059.3,12.4998]
[1764760673600,25.71052964,3059.4,3059.3,12.4998]
[1764760674394,25.71052964,3059.4,3059.3,6.3741]
[1764760674699,19.45812964,3059.4,3059.0,9.94652158]
[1764760674893,6.2484,3059.1,3059.0,16.07222158]
[1764760675093,6.453326,3059.1,3059.0,16.07222158]
[1764760675597,12.572626,3059.1,3059.0,16.07222158]
[1764760675791,6.453326,3059.1,3059.0,16.07222158]
[1764760678400,12.572626,3059.1,3059.0,16.07222158]
[1764760678600,6.453326,3059.1,3059.0,16.07222158]
[1764760679295,0.204926,3059.1,3059.0,16.07222158]
[1764760679492,25.50160364,3059.4,3059.3,12.4998]
[1764760679697,25.70663259,3059.4,3059.3,12.4998]
[1764760680305,12.57763259,3059.4,3059.3,12.4998]
[1764760680703,0.20993259,3059.4,3059.3,12.4998]
[1764760680907,3.2078,3059.6,3059.5,16.0692]
[1764760681104,9.4562,3060.1,3060.0,16.0692]
[1764760681406,1.68213259,3060.1,3060.0,16.0692]
[1764760681608,28.6895,3060.5,3060.4,6.3741]
[1764760681796,12.3677,3060.1,3060.0,16.0692]
[1764760682001,6.2484,3060.1,3060.0,16.0692]
[1764760682404,12.3677,3060.1,3060.0,3.5694]
[1764760682908,12.3677,3060.1,3060.0,9.9435]
[1764760683505,12.3677,3060.1,3060.0,16.0692]
[1764760684115,3.2078,3060.5,3060.0,16.0692]
[1764760684413,19.2919,3060.5,3060.4,11.6196]
[1764760686611,19.2919,3060.5,3060.4,5.8009]
[1764760687315,19.2919,3060.5,3060.4,11.6196]
[1764760688315,19.2919,3060.5,3060.4,5.8009]
[1764760689124,19.2919,3060.5,3060.4,11.6196]
[1764760689324,0.00490364,3060.8,3060.7,11.6196]
[1764760689525,12.2271,3060.6,3060.5,9.4595]
[1764760690125,12.2271,3060.6,3060.5,15.2782]
[1764760691420,6.0707,3060.6,3060.5,15.2782]
[1764760692221,12.2271,3060.6,3060.5,15.2782]
[1764760692825,12.43147054,3060.6,3060.5,15.2782]
[1764760693925,12.43147054,3060.6,3060.5,9.4595]
[1764760694128,12.43147054,3060.6,3060.5,15.2782]
[1764760694631,12.43145616,3060.6,3060.5,15.2782]
[1764760695315,12.43145616,3060.6,3060.5,3.6586]
[1764760695522,12.2271,3060.5,3060.4,9.01360364]
[1764760695721,25.52145616,3060.5,3060.4,3.21270364]
[1764760698521,19.36505616,3060.5,3060.4,14.83230364]
[1764760698728,25.52145616,3060.5,3060.4,14.83230364]
[1764760698915,25.52145616,3060.5,3060.4,9.01360364]
[1764760700222,29.37845616,3060.5,3060.4,3.21270364]
[1764760700527,12.2271,3060.1,3060.0,3.2078]
[1764760700729,12.43145616,3060.1,3060.0,9.0087]
[1764760700929,12.43145616,3060.1,3060.0,12.6673]
[1764760701428,12.43145616,3060.1,3060.0,18.486]
[1764760703233,12.43145616,3060.1,3060.0,12.6673]
[1764760703421,12.43145616,3060.1,3060.0,6.8664]
[1764760703926,12.43145616,3060.1,3060.0,12.6673]
[1764760707027,12.43145616,3060.1,3060.0,18.486]
[1764760707427,6.27505616,3060.1,3060.0,18.486]
[1764760707625,0.20435616,3060.1,3060.0,18.486]
[1764760707821,0.00490364,3060.8,3060.5,3.6586]
[1764760708030,12.2271,3060.6,3060.5,15.2782]
[1764760708225,0.2042528,3060.6,3060.5,15.2782]
[1764760708431,12.4313528,3060.6,3060.5,15.2782]
[1764760708632,12.4313528,3060.6,3060.5,9.4595]
[1764760708828,12.4313528,3060.6,3060.5,15.2782]
[1764760712035,12.2271,3060.5,3060.4,3.2078]
[1764760712337,26.67396798,3060.5,3060.4,3.2078]
[1764760712543,12.2271,3060.1,3060.0,3.6586]
[1764760712839,26.67196798,3060.1,3060.0,9.4595]
[1764760713842,11.1011,3060.0,3059.9,3.2078]
[1764760714037,11.3053528,3060.0,3059.9,3.2078]
[1764760715034,11.3053528,3060.0,3059.9,8.6418]
[1764760715235,65.1753528,3060.0,3059.9,8.6418]
[1764760715436,65.1753528,3060.0,3059.9,3.2078]
[1764760715736,65.1753528,3060.0,3059.9,8.6418]
[1764760716633,46.2107528,3060.0,3059.9,14.794]
[1764760716837,13.2702528,3060.0,3059.9,14.794]
[1764760717030,0.2042528,3060.0,3059.9,14.794]
[1764760717236,12.749,3060.3,3060.2,10.683]
[1764760717437,5.79987365,3060.3,3060.2,10.683]
[1764760718042,11.34027365,3060.3,3060.2,10.683]
[1764760719850,5.5958,3060.1,3060.0,13.874]
[1764760720146,0.20407365,3060.1,3060.0,13.874]
[1764760720341,5.79972147,3060.3,3060.2,10.683]
[1764760720744,11.34012147,3060.3,3060.2,10.683]